Workbook

Sheet 1
B1: Micro EG (30-200kW) Commissioning Template
B2: Location:
B3: MC Number:
B4: Inverter Capacity:
B5: Export Limit:
B6: Checklist Instructions
B7: This checklist is to be completed in full and signed by the commissioning agent. The injection testing shall be carried out by a qualified electrical tester with calibrated test equipment and the results recorded in the below tables. The below tests are Ausgrids minimum testing requirements for Micro EG Installations
B10: COMPLETE ALL FIELDS IN THIS COLOUR
B11: 1.0 Documentation
B12: Drawings | G12: Details
B13: Single Line Diagram | G13: No: Sht Amd
B15: Central Protection Schematic Diagram | G15: No: Sht Amd
B16: Other -
B17: WAS THE INSTALLATION BUILT AS PER THE PRE-APPROVED DESIGN | I17: YES/NO | J17: =IF((I18="YES"),"PROCEED","SUBMIT DESIGN") -> SUBMIT DESIGN
B18: IF NO PLEASE SUBMIT THE AMENDED DESIGN TO AUSGRID PROJECT CO-ORDINATOR FOR APPROVAL
B20: 2.0 Functional/Operational Checks
B21: Specific Activity Description | J21: Enter YES/NO
B22: 1 | C22: ### Protection Panel Checks ###
B23: 2 | C23: Central protection arrangement including voltage reference location matches the single line diagram referenced above in section 1.0
B25: 3 | C25: Visual inspection to confirm wiring matches the Schematic Diagram referenced above in section 1.0 & cables are connected to the correct terminals of the central protection device.
B27: 4 | C27: Central protection settings match those referenced above in section 1.0 including Sustained OV
B28: 5 | C28: Secondary injection tests carried out on central protection, i.e. OF, UF, OV, UV, ROCOF & VS.
B29: 6 | C29: Inverters disconnect due to central protection operation.
B30: 7 | C30: Inverters disconnect due to loss of power to central protection device.
B31: 8 | C31: Where communcations link provides remote tripping it is operational and fail safe.
B32: 9 | C32: Where standby generation exists the IES cannot syncronise with the standby generation.
B33: 10 | C33: ### Inverter Checks ###
B34: 11 | C34: Number of Inverters installed matches the Single Line Diagram referenced above in section 1.0
B35: 12 | C35: Inverter make and model matches the Single Line Diagram referenced above in section 1.0
B36: 13 | C36: New Inverters are programmed for Region - Australia A settings
B37: 14 | C37: ### Primary Anti-Islanding Checks ### (Check at conclusion of injection testing)
B38: 15 | C38: Inverters correctly synchronise & close when mains supply is available.
B39: 16 | C39: Inverters disconnect when mains supply is removed.
B40: 17 | C40: Inverters left de-energised at conclusion of testing.
B41: 3.0 Additional Comments

Sheet 2
B1: Document Number: | I1: Micro EG 15-09-2022
B2: Over & Under Frequency Testing (81O/U)
B3: Protection Setting | C3: Set Point | E3: Pass Criteria | G3: Result | I3: =IF(AND(I5="PASS",I6="PASS",I7="PASS",I8="PASS"),"PASS","") -> 
C4: Value | D4: Units | E4: Lowest | F4: Highest | G4: Value | H4: Units
B5: OF Pick Up | C5: 52 | D5: Hz | E5: =(C5-(0.01*C5)) -> 51.48 | F5: =(C5+(0.01*C5)) -> 52.52 | H5: Hz | I5: =IF(AND(G5>=E5,G5<=F5),"PASS",IF(G5="","Missing","FAIL")) -> Missing
B6: OF Timing | C6: 2 | D6: sec | E6: =(C6-(0.05*C6)) -> 1.9 | F6: =(C6+(0.05*C6)) -> 2.1 | H6: sec | I6: =IF(AND(G6>=E6,G6<=F6),"PASS",IF(G6="","Missing","FAIL")) -> Missing
B7: UF Pick Up | C7: 47 | D7: Hz | E7: =(C7-(0.01*C7)) -> 46.53 | F7: =(C7+(0.01*C7)) -> 47.47 | H7: Hz | I7: Missing
B8: UF Timing | C8: 2 | D8: sec | E8: =(C8-(0.05*C8)) -> 1.9 | F8: =(C8+(0.05*C8)) -> 2.1 | H8: sec | I8: Missing
B10: Over & Under Voltage Testing (59/27)
B11: Protection Setting | C11: Set Point | E11: Pass Criteria | G11: Result | I11: =IF(AND(I13="PASS",I14="PASS",I15="PASS",I16="PASS"),"PASS","") -> 
C12: Value | D12: Units | E12: Lowest | F12: Highest | G12: Value | H12: Units
B13: OV Pick Up | C13: 260 | D13: V | E13: =(C13-(0.02*C13)) -> 254.8 | F13: =(C13+(0.02*C13)) -> 265.2 | H13: V | I13: =IF(AND(G13>=E13,G13<=F13),"PASS",IF(G13="","Missing","FAIL")) -> Missing
B14: OV Timing | C14: 2 | D14: sec | E14: =(C14-(0.05*C14)) -> 1.9 | F14: =(C14+(0.05*C14)) -> 2.1 | H14: sec | I14: Missing
B15: UV Pick Up | C15: 180 | D15: V | E15: =(C15-(0.02*C15)) -> 176.4 | F15: =(C15+(0.02*C15)) -> 183.6 | H15: V | I15: Missing
B16: UV Timing | C16: 2 | D16: sec | E16: =(C16-(0.05*C16)) -> 1.9 | F16: =(C16+(0.05*C16)) -> 2.1 | H16: sec | I16: Missing
B18: Reverse Power (Grid) Testing (32)*
B19: Protection Setting | C19: Set Point | E19: Pass Criteria | G19: Result | I19: =IF(AND(I21="PASS",I22="PASS"),"PASS","") -> 
C20: Value | D20: Units | E20: Lowest | F20: Highest | G20: Value | H20: Units
B21: RP Pick Up | C21: N/A | E21: =(C21-(0.05*C21)) ->  | F21: =(C21+(0.05*C21)) ->  | I21: =IF(AND(G21>=E21,G21<=F21),"PASS",IF(G21="","Missing","FAIL")) -> 
B22: RP Timing | C22: N/A | E22: =(C22-(0.05*C22)) ->  | F22: =(C22+(0.05*C22)) -> 
B23: *If required - Ausgrid to Add Set Point Values
B24: Rate Of Change Of Frequency Testing (81R)
B25: Protection Setting | C25: Set Point | E25: Pass Criteria | G25: Result | I25: =IF(AND(I27="PASS",I28="PASS",I29="PASS",I30="PASS"),"PASS","") -> 
C26: Value | D26: Units | E26: Lowest | F26: Highest | G26: Value | H26: Units
B27: +ve ROCOF Pick Up | C27: 4 | D27: Hz/s | E27: =(C27-(0.05*C27)) -> 3.8 | F27: =(C27+(0.05*C27)) -> 4.2 | H27: Hz/s | I27: =IF(AND(G27>=E27,G27<=F27),"PASS",IF(G27="","Missing","FAIL")) -> Missing
B28: +ve ROCOF Timing | C28: 0.25 | D28: s | E28: =(C28-(0.05*C28)) -> 0.2375 | F28: =(C28+(0.05*C28)) -> 0.2625 | H28: s | I28: Missing
B29: -ve ROCOF Pick Up | C29: -4 | D29: Hz/s | E29: =(C29+(0.05*C29)) -> -4.2 | F29: =(C29-(0.05*C29)) -> -3.8 | H29: Hz/s | I29: Missing
B30: -ve ROCOF Timing | C30: 0.25 | D30: s | E30: =(C30-(0.05*C30)) -> 0.2375 | F30: =(C30+(0.05*C30)) -> 0.2625 | H30: s | I30: Missing
B31: NOTE ROCOF tests usually performed as Go, No Go test. Acceptable test result is ± 5% setting
B33: Vector Shift Testing (98dV)
B34: Protection Setting | C34: Set Point | E34: Pass Criteria | G34: Result | I34: =IF(AND(I36="PASS",I37="PASS",I38="PASS",I39="PASS"),"PASS","") -> 
C35: Value | D35: Units | E35: Lowest | F35: Highest | G35: Value | H35: Units
B36: +ve VS Pickup | C36: 20 | D36: Deg. | E36: =(C36-(0.05*C36)) -> 19 | F36: =(C36+(0.05*C36)) -> 21 | H36: Deg. | I36: =IF(AND(G36>=E36,G36<=F36),"PASS",IF(G36="","Missing","FAIL")) -> Missing
B37: +ve VS Timing | C37: 0 | D37: s | E37: =C37 -> 0 | F37: =(C37+0.05) -> 0.05 | H37: s | I37: PASS
B38: -ve VS Pickup | C38: -20 | D38: Deg. | E38: =(C38+(0.05*C38)) -> -21 | F38: =(C38-(0.05*C38)) -> -19 | H38: Deg. | I38: Missing
B39: -ve VS Timing | C39: 0 | D39: s | E39: =C39 -> 0 | F39: =(C39+0.05) -> 0.05 | H39: s | I39: PASS
B40: Acceptable test result is ± 5% setting
B42: Trip Check
B43: Test Trigger | C43: Pass Criteria | G43: Result | I43: ENTER PASS/FAIL
B45: Any Protection Function | C45: Circuit Breaker trips within specified time for protection function
B48: Central Protection Faulty Test
B49: Test Trigger | C49: Pass Criteria | G49: Result | I49: ENTER PASS/FAIL
B51: Disconnect power supply to central protection device | C51: Inverters disconnect within approx. _2_ Seconds
B54: Auto / Manual Reset Checks
B55: Test Trigger | C55: Pass Criteria | G55: Result | I55: ENTER PASS/FAIL
B57: CB open & normal system conditions injected to Relay | C57: Circuit Breaker does not close until manually closed / Auto reset time expires
B60: Remote Comms Fail Trip Test
B61: Test Trigger | C61: Pass Criteria | G61: Result | I61: ENETER PASS/FAIL
B62: Loss of Comms | C62: Remote Board trips within approx. _2_ Seconds

Sheet 3
B1: Document Number: | E1: Micro EG 15-09-2022
B3: Inverter Reconnect Check
B4: Note : This test must only be performed after all other tests have been successfully completed.
B5: Test Trigger | C5: Pass Criteria | G5: Result | I5: ENTER PASS/FAIL
B7: Operate the main switch (inverter supply) | C7: Verify that the connection time is greater than 60s
B10: Anti-Islanding Primary Check
B11: Test Trigger | C11: Pass Criteria | G11: Result | I11: ENTER PASS/FAIL
B13: Isolate the main switch (mains supply) | C13: Verify that the disconnection time is less than 2s
B17: Sustained OverVoltage
B18: Protection Setting | E18: Set Point | G18: Verified Yes/No
E19: Value | F19: Units
B20: V>(10min) Pick Up | E20: 258 | F20: V
B21: V>(10min) Timing | E21: 15 | F21: sec
B24: Inverter Settings review
B26: AS4777.2-2020 Region Setting - Australia A | G26: Verified Yes/No
B29: COMMISSIONING AGENT DECLARATION
B30: THE BELOW SIGNED HEREBY WARRANTS AND AGREES with and for the benefit of Ausgrid ; The attached Test results are a true and accurate reflection of the as built installation and The Installation has been completed by competent, experienced and qualified individual(s) in full compliance with the latest revisions and amendments of the appropriate standards and regulations.
C37: TEST SET:
C38: RELAY MODEL:
C39: RELAY SERIAL #:
C40: COMMISSIONING AGENT NAME:
C41: COMPANY:
C42: SIGNATURE
C44: DATE:
